Cogmind - Beta 16 @@@ ROGUE MODE // 2025.11.06 @ 02:31:40 Player: Wyvric Result: Destroyed by D-53 Grenadier with Mini Grenade Launcher Performance ------------- Evolutions (0) 0 Regions Visited (2) 400 Robots Destroyed (24) 120 Value Destroyed (627) 627 Prototype IDs (0) 0 Alien Tech Used (0) 0 Bonus (0) 0 TOTAL SCORE: 1147 Bonus ------- None Cogmind --------- Core Integrity 0/250 Matter 244/300 Energy 100/100 System Corruption 0% Temperature Cool (0) Movement Core (550) Ox10 Location -10/Mines Parts ------- > --- POWER (1) -------- (None) > --- PROPULSION (2) --- (None) > --- UTILITY (2) ------ Large Storage Unit Medium Armor Plating > --- WEAPON (2) ------- Autogun Autogun > --- INVENTORY (15) --- Light Ion Engine Wheel Wheel Huge Storage Unit Structural Scanner Signal Interpreter Seismic Detector Medium Armor Plating Autogun Autogun Light Cannon Grenade Launcher Peak State ------------ > --- POWER ------------ Light Ion Engine > --- PROPULSION ------- Light Treads Light Treads > --- UTILITY ---------- Large Storage Unit Medium Armor Plating > --- WEAPON ----------- Autogun Autogun > --- INVENTORY -------- Light Ion Engine Wheel Wheel Huge Storage Unit Structural Scanner Seismic Detector Medium Armor Plating Medium Armor Plating Medium Armor Plating Autogun Autogun Light Cannon Grenade Launcher [Rating: 11] Favorites ----------- Power Light Ion Engine Engine Light Ion Engine Propulsion Light Treads Treads Light Treads Utility Large Storage Unit Storage Large Storage Unit Protection Medium Armor Plating Weapon EM Pulse Gun Energy Gun EM Pulse Gun Ballistic Gun Autogun Ballistic Cannon Light Cannon Build | -11 -10 -10 ------- Run | Yrd Mat Min Slots Evolved . | . . . Power . | . . . Propulsion . | . . . Utility . | . . . Weapon . | . . . Parts Attached 13 | 6 3 4 Power 1 | 1 . . Engine 1 | 1 . . Core . | . . . Reactor . | . . . Propulsion 2 | 2 . . Treads 2 | 2 . . Leg . | . . . Wheel . | . . . Hover . | . . . Flight . | . . . Utility 5 | 1 2 2 Device . | . . . Storage 2 | 1 1 . Processor . | . . . Hackware . | . . . Protection 3 | . 1 2 Artifact . | . . . Weapon 5 | 2 1 2 Energy Gun 2 | 2 . . Energy Cannon . | . . . Ballistic Gun 2 | . . 2 Ballistic Cannon 1 | . 1 . Launcher . | . . . Special Weapon . | . . . Impact Weapon . | . . . Slashing Weapon . | . . . Piercing Weapon . | . . . Special Melee Weapon . | . . . Unidentified Prototypes . | . . . Parts Lost 7 | . 1 6 Power 1 | . . 1 Propulsion 2 | . . 2 Utility 2 | . . 2 Weapon 2 | . 1 1 Highest Loss Streak 5 | . 1 5 To Critical Strikes . | . . . Average Backups 10 | 4 9 13 Power . | . 1 1 Propulsion 3 | 2 3 2 Utility 3 | . 2 6 Weapon 3 | 1 2 4 Tool/Special . | . . . Unused Backups 14 | . 4 10 Power 1 | . . 1 Propulsion 4 | . 2 2 Utility 4 | . . 4 Weapon 5 | . 2 3 Tool/Special . | . . . Average Slot Usage (%) 89 | . 86 96 Engine 13 | . 14 13 Treads 27 | . 28 27 Storage 14 | . 14 14 Protection 5 | . 1 13 Energy Gun 14 | . 18 5 Ballistic Gun 4 | . . 13 Ballistic Cannon 8 | . 9 7 Peak Build Rating 11 | 6 10 11 Average Rating 7 | 3 6 10 On Entrance 5 | . 6 10 Avg Prop Armor Cover (%) . | . . . Naked Turns . | . . . Heaviest Build 36 | 12 35 36 Greatest Support 40 | 40 40 40 Greatest Overweight (x) . | . . . Average Overweight (x) . | . . . Largest Inventory Capacity 15 | 8 15 15 Average Capacity 14 | 6 14 15 Most Carried 15 | 8 15 14 Average Carried 10 | 4 9 13 Final Capacity 15 | 8 15 15 Final Carried 14 | 6 14 12 Class Distribution -------------------- 100% | Mutant Dominant Class ---------------- Mutant | -10/Materials Mutant | -10/Mines Resources | -11 -10 -10 ----------- Run | Yrd Mat Min Matter Collected 441 | 179 163 99 Remotely . | . . . Salvage Created 864 | . 695 169 Parts 54 | . 46 8 Haulers Intercepted . | . . . Recyclers Shooed 1 | . 1 . Parts Field Recycled . | . . . Retrieved Matter . | . . . Parts Self-Destructed . | . . . Prevented . | . . . Parts Restored . | . . . Kills | -11 -10 -10 ------- Run | Yrd Mat Min Combat Hostiles Destroyed 22 | . 16 6 Guns 16 | . 13 3 Cannons 6 | . 3 3 Classes Destroyed 4 | . 4 . Recycler 1 | . 1 . Watcher 1 | . 1 . Swarmer 8 | . 5 3 Grunt 14 | . 11 3 Best Kill Streak 4 | . 4 3 Combat Bots Only 3 | . 3 3 Max Kills in Single Turn 1 | . 1 1 Gunslinging . | . . . Exploded . | . . . Melee . | . . . Uniques/NPCs Destroyed . | . . . Combat | -11 -10 -10 -------- Run | Yrd Mat Min Hostile Shots Fired 88 | . 51 37 Missed 20 | . 15 5 Hits 68 | . 36 32 Projectile 68 | . 36 32 AOE 15 | . . 15 Critical Strikes 2 | . 1 1 Damage Taken 1211 | . 337 874 Core 274 | . 34 240 Absorbed by Shields . | . . . Core Remaining (%) 100 | 100 . . Volleys Fired 60 | . 35 25 Largest 2 | . 2 2 Hottest 80 | . 80 70 Shots Fired 116 | . 70 46 Gun 88 | . 57 31 Cannon 28 | . 13 15 Launcher . | . . . Special . | . . . Kinetic 48 | . 13 35 Thermal . | . . . Explosive . | . . . Electromagnetic 68 | . 57 11 Robot Hit Streak 7 | . 6 7 Robot Miss Streak 6 | . 6 2 Penetration Max . | . . . Secondary Targets 1 | . 1 . Max Gunslinging Chain 1 | . 1 . Shots Hit Robots 73 | . 41 32 Core Hits 31 | . 22 9 Critical Kills . | . . . Critical Parts Destroyed . | . . . Critical Strikes 2 | . 2 . Blast 1 | . 1 . Corrupt 1 | . 1 . Melee Attacks . | . . . Impact . | . . . Slashing . | . . . Piercing . | . . . Sneak Attacks . | . . . Combat Hostiles . | . . . Follow-up Attacks . | . . . Damage Inflicted 1096 | . 591 505 Guns 777 | . 464 313 Cannons 319 | . 127 192 Explosions . | . . . Melee . | . . . Ramming . | . . . Kinetic 538 | . 127 411 Thermal . | . . . Explosive . | . . . Electromagnetic 558 | . 464 94 Impact . | . . . Slashing . | . . . Piercing . | . . . Highest Corruption . | . . . Average Corruption . | . . . Corruption Purged . | . . . Corruption Blocked . | . . . Overload Shots . | . . . Overflow Damage 1 | . 1 . Projectiles 1 | . 1 . Explosions . | . . . Melee . | . . . Knockbacks 3 | . 3 . Impact . | . . . Kinetic 2 | . 2 . Secondary 1 | . 1 . Self-Inflicted Damage . | . . . Shots . | . . . Rammed . | . . . Targets Rammed . | . . . Kicked . | . . . Crushed . | . . . Highest Temperature 175 | . 126 175 Average Temperature 52 | . 48 59 Received Heat Transfer 234 | . 99 135 Siege Activations . | . . . Martial Activations . | . . . Shielding Activations . | . . . Robots Disrupted . | . . . Combat Hostiles . | . . . Robots Corrupted 1 | . 1 . Combat Hostiles . | . . . Parts Fried 3 | . 3 . Impact Corruptions . | . . . Robots Melted . | . . . Combat Hostiles . | . . . Parts Melted . | . . . Heat Transferred . | . . . Parts Sabotaged . | . . . Parts Stolen . | . . . Parts Stripped . | . . . Power Chain Reactions . | . . . Alert | -11 -10 -10 ------- Run | Yrd Mat Min Maximum Alert Level . | . . . Low Security (%) 100 | 100 100 100 Level 1 . | . . . Level 2 . | . . . Level 3 . | . . . Level 4 . | . . . Level 5 . | . . . High Security . | . . . Max Security . | . . . Peak Influence 166 | . 166 81 Initial 22 | . . 22 Average 49 | . 63 25 Influence Increases 697 | . 521 176 Destroy 0b10 Robot/C 440 | . 320 120 Destroy 0b10 Robot/NC 10 | . 10 . Destroy Leader 102 | . 72 30 Allied During Kill 11 | . . 11 Successful Hack 14 | . 14 . Select Force Hacks 60 | . 60 . Disable Machine 15 | . 15 . Lose Combat Pursuer 45 | . 30 15 Influence Decreases 697 | . 462 235 Entered New Map 37 | . . 37 Time Decay 609 | . 452 157 Lost Part 20 | . 10 10 Lost Ally 31 | . . 31 Squads Dispatched 4 | . 4 . Investigation 4 | . 4 . Extermination . | . . . Reinforcement . | . . . Assault . | . . . Garrison . | . . . Intercept . | . . . Searches Triggered . | . . . Construction Impeded . | . . . Haulers Reinforced . | . . . Active Scanning Responses . | . . . Cargo Convoy Interrupts . | . . . Stealth | -11 -10 -10 --------- Run | Yrd Mat Min Distress Signals . | . . . Communications Jammed . | . . . Distress Signals . | . . . Times Spotted 34 | . 25 9 Peak Tracking Total 4 | . 4 3 Tactical Retreats 3 | . 2 1 Traps | -11 -10 -10 ------- Run | Yrd Mat Min Traps Triggered 2 | . 2 . Indirectly . | . . . Trap Hack Attempts . | . . . Triggered . | . . . Disarmed . | . . . Reprogrammed . | . . . Reused . | . . . Traps Extracted . | . . . Installed . | . . . Triggered . | . . . Machines | -11 -10 -10 ---------- Run | Yrd Mat Min Machines Disabled 1 | . 1 . Max in Single Turn 1 | . 1 . Machines Repaired . | . . . Machines Dismantled . | . . . Machines Sabotaged . | . . . Overloaded Fab Kills . | . . . Hacking | -11 -10 -10 --------- Run | Yrd Mat Min Machines Accessed 10 | . 10 . Terminals 8 | . 8 . Fabricators . | . . . Repair Stations . | . . . Recycling Units 2 | . 2 . Scanalyzers . | . . . Garrison Access . | . . . Total Hacks 29 | . 29 . Successful 13 | . 13 . Failed 15 | . 15 . Catastrophic 2 | . 2 . Database Lockouts 1 | . 1 . Manual 26 | . 26 . Terminals 27 | . 27 . Fabricators . | . . . Repair Stations . | . . . Recycling Units 2 | . 2 . Scanalyzers . | . . . Garrison Access . | . . . Terminal Hacks 4 | . 4 . Part Schematic 1 | . 1 . Robot Analysis 1 | . 1 . Locate Traps 1 | . 1 . Zone Layout 1 | . 1 . Fabricator Hacks . | . . . Repair Station Hacks . | . . . Recycling Unit Hacks . | . . . Scanalyzer . | . . . Garrison Access Hacks . | . . . Unauthorized Hacks 9 | . 9 . Terminals 7 | . 7 . Botnet 2 | . 2 . Skim 5 | . 5 . Fabricators . | . . . Repair Stations . | . . . Recycling Units 2 | . 2 . Tunnel 2 | . 2 . Scanalyzers . | . . . Garrison Access . | . . . Data Cores Recovered . | . . . Used . | . . . Hacking Detections 7 | . 7 . Full Trace Events . | . . . Feedback Events . | . . . Feedback Blocked . | . . . Robot Schematics Acquired . | . . . Robots Built . | . . . Authchips . | . . . Time . | . . . Total Robot Build Rating . | . . . Part Schematics Acquired 1 | . 1 . Parts Built . | . . . Authchips . | . . . Time . | . . . Total Part Build Rating . | . . . Part Studies Acquired . | . . . Parts Repaired . | . . . Time . | . . . Parts Recycled . | . . . Recycled Matter . | . . . Retrieved Matter . | . . . Retrieved Components . | . . . Parts Scanalyzed . | . . . Part Schematics Acquired . | . . . Parts Damaged . | . . . Bothacking | -11 -10 -10 ------------ Run | Yrd Mat Min Used RIF Installer . | . . . Robots Hacked . | . . . Non-combat . | . . . Combat . | . . . Robot Hacks Applied . | . . . Relay Couplers Released . | . . . Fabnet Peak Effective % . | . . . Robots Rewired . | . . . Allies Hacked . | . . . Hacks Repelled . | . . . Allies | -11 -10 -10 -------- Run | Yrd Mat Min Total Allies 3 | . . 3 Largest Group 3 | . . 3 Highest-Rated Group 40 | . . 40 Highest-Rated Ally 16 | . . 16 Total Orders . | . . . Ally Attacks 6 | . . 6 Total Damage 42 | . . 42 Kills . | . . . Allies Corrupted . | . . . Allies Melted . | . . . Intel | -11 -10 -10 ------- Run | Yrd Mat Min Active Infowar (turns) . | . . . Robot Analysis Total 1 | . 1 . Derelict Logs Recovered 2 | . . 2 Drone Launches . | . . . Drone Recoveries . | . . . Exploration | -11 -10 -10 ------------- Run | Yrd Mat Min Turns Passed 1878 | 79 1242 557 Spaces Moved 841 | 41 500 300 Core 1 | 1 . . Treads 840 | 40 500 300 Legs . | . . . Wheels . | . . . Hover . | . . . Flight . | . . . Fastest Speed 50 | 50 160 160 Average Speed 159 | 157 160 160 Slowest Speed 160 | 160 160 160 Overloaded Moves . | . . . Propulsion Burnouts . | . . . Robots Hopped . | . . . Potential Cave-ins . | . . . Cave-ins Triggered . | . . . Exploration Rate (%) 54 | 5 96 63 Regions Visited 2 Branch Regions 1 Pre-discovered Areas 3 | . 3 . Known Exits Taken 1 | . 1 . Unknown Exits Taken 1 | 1 . . Scrap Searched 2 | . . 2 Spaces Dug . | . . . Terrain Destroyed . | . . . Melee . | . . . Projectile . | . . . AOE . | . . . Terrain Rammed . | . . . Walls Destroyed . | . . . Machines Disabled . | . . . Actions | -11 -10 -10 --------- Run | Yrd Mat Min Total 1262 | 54 874 334 Wait 323 | . 319 4 Move 839 | 40 499 300 Hop . | . . . Pick Up 22 | 8 13 1 Fast Attach 6 | 4 2 . Attach 6 | 2 1 3 Detach . | . . . Swap 1 | . . 1 Drop 5 | . 5 . Fire 60 | . 35 25 Melee . | . . . Ram . | . . . Kick . | . . . Crush . | . . . Escape Stasis . | . . . Rewire . | . . . Trap . | . . . Miscellaneous . | . . . Route ------- -11/Scrapyard -10/Materials (discovered 5 exits: *Mat x3 / *Min x2) -10/Mines (discovered 3 exits: *Mat x2 / Sub) History --------- Turn | Location | Event 30 | -11/Scrapyard | Discovered new exit (range 13) 80 | -11/Scrapyard | Entered Materials 311 | -10/Materials | Build established: Mutant 387 | -10/Materials | Discovered new exit (range 12) 475 | -10/Materials | Discovered new exit (range 13) 558 | -10/Materials | Discovered new exit (range 4) 777 | -10/Materials | Identified exit to Mines 896 | -10/Materials | Learned 2 Mines zone layouts 940 | -10/Materials | Learned location of Mines (-10) 976 | -10/Materials | Learned Storage non-interactive machine intel 1072 | -10/Materials | Identified exit to Materials 1134 | -10/Materials | Learned Storage security intel 1310 | -10/Materials | Central database locked down 1322 | -10/Materials | Entered Mines 1324 | -10/Mines | Identified exit to Subcaves 1449 | -10/Mines | Learned Materials stockpile data 1586 | -10/Mines | Assisted by bots powering up and referring to "LRC-V3" 1714 | -10/Mines | Deemed a non-threat by the Exiles lab entrance 1826 | -10/Mines | Learned 8 Materials zone layouts 1853 | -10/Mines | Assembled infested the area 1858 | -10/Mines | Assisted by a Guerilla fighting off Assembled 1867 | -10/Mines | Core integrity fell below 50% 1874 | -10/Mines | Core integrity fell below 20% 1879 | -10/Mines | Destroyed by D-53 Grenadier with Mini Grenade Launcher Last Messages --------------- 01865_ The unstable cave ceiling collapses. 01865_ U-05 Engineer lays Concrete. 01866_ T-07 Excavator destroyed. 01866_ Lgt. Ion Engine destroyed. 01866_ U-05 Engineer lays Concrete. 01867_ U-05 Engineer builds a Wall. 01867_ D-53 Grenadier destroyed. 01867_ U-05 Engineer builds a Wall. 01869_ Med. Armor Plating destroyed. 01871_ The unstable cave ceiling collapses. 01871_ U-05 Engineer lays Concrete. 01872_ The unstable cave ceiling collapses. 01872_ U-05 Engineer builds a Wall. 01872_ U-05 Engineer lays Concrete. 01873_ U-05 Engineer builds a Wall. 01875_ The unstable cave ceiling collapses. 01876_ U-05 Engineer builds a Wall. 01877_ The unstable cave ceiling collapses. 01877_ K-01 Serf destroyed. 01877_ U-05 Engineer builds a Wall. Map ----- +----------------------------------------------------+ | ??#== #### ###?## # #??????????????????? | | ??# ### #?# ## #??????????????????? | | ??# #### #?# ### ###??####?#########??? | | ??# ##?# ### ###?# #???## ## ##?? | | ??## ### ## ##???# ##??# """ ### | | ???### ## #??### #??# """ | | ?????# ## ##### #### #???# """ | | ???### ### #???# ! #???## ### | | ??## #?# #???# %! #????##### ##?# | | ??# ### #???# ### ########## ##??# | | ??# ## ##### #?# # ##???## | | ??# # #?????? | | ??## ############ ########## # #?????? | | ???## #??????????# ##????????# # #?????? | | ????## #??????????# ##?????????# #???### | | ?????## #?????????# #??????????# #??## | | ??????# ##??????## #??????????#######??# | | ??????# ###??????## #???????????????????# | | ??????# #####????# """ #????????????????????# | | ??????# #????# """ #????????????????????### | | ??????# ####?## """u###????????????????????? | | ??????##### [=#??## # ##???????????????????? | | ??????????# ##%#???# ###?????##??????????? | | ?????????## ## ##### #????## #?????????? | | ????????## ####### ########## | | ????????# @ u | | ????????#### ### % # #### | | ???????????### ##?# d # #??# ### ### | | ?????????????#####??# ##???# ????# ## | | ????????????????????## # #???# ?????## # | | ?????????????????????##### ###?????""" """ | | ?????????????????????????? #???????""" """ | | ?????????????????????????? %#???????""" ### """ | | ?????????????????????????? ??????? #??# | | ??????????????????????????